fUSD/lending_fUSD_20240222
["ID","MTS","AMOUNT","RATE_DAILY","PERIOD"]
[314899407,1708625520793,-500.0,0.00033698,4]
[314899408,1708625520802,-7508.74,0.00033698,4]
[314899409,1708625520811,-409.88721473,0.00033698,4]
[314899410,1708625520820,-500.0,0.00033698,4]
[314899411,1708625520829,-500.0,0.00033698,4]
[314899412,1708625520839,-308.051986,0.00033698,7]
[314899413,1708625520848,-2188.57,0.00033698,4]
[314899414,1708625520858,-640.5,0.00033698,4]
[314899415,1708625520867,-1521.19,0.00033698,4]
[314899416,1708625520878,-1556.17,0.00033698,2]
[314899417,1708625520889,-1367.32,0.00033698,4]
[314899418,1708625520898,-579.67,0.00033698,4]
[314899419,1708625520907,-500.0,0.00033698,4]
[314899420,1708625520917,-500.0,0.00033698,4]
[314899421,1708625520928,-151.0,0.00033698,7]
[314899422,1708625520936,-500.0,0.00033698,4]
[314899423,1708625520945,-308.051986,0.00033698,7]
[314899424,1708625520957,-500.0,0.00033698,4]
[314899425,1708625520966,-3289.02,0.00033698,4]
[314899426,1708625520975,-1435.75,0.00033698,4]
[314899427,1708625520984,-7764.94,0.00033698,4]
[314899428,1708625520993,-670.88,0.00033698,4]
[314899429,1708625521003,-1463.74,0.00033698,4]
[314899430,1708625521013,-905.05,0.00033698,4]
[314899431,1708625521022,-500.0,0.00033698,4]
[314899432,1708625521032,-500.0,0.00033698,4]
[314899433,1708625521042,-500.0,0.00033698,4]
[314899434,1708625521052,-2618.09,0.00033698,4]
[314899435,1708625521062,-155.591348,0.00033698,7]
[314899436,1708625521072,-500.0,0.00033698,4]
[314899437,1708625521081,-1754.26,0.00033698,4]
[314899438,1708625521091,-230.005431,0.00033698,7]
[314899439,1708625521100,-571.38,0.00033698,4]
[314899440,1708625521109,-164.16455168,0.00033698,4]
[314899441,1708625521118,-230.005431,0.00033698,7]
[314899442,1708625521128,-1224.57,0.00033698,4]
[314899443,1708625521137,-1412.23,0.00033698,4]
[314899444,1708625521146,-1295.05,0.00033698,4]
[314899445,1708625521156,-2025.9,0.00033698,4]
[314899446,1708625521165,-500.0,0.00033698,4]
[314899447,1708625521175,-734.04,0.00033698,4]
[314899448,1708625521184,-16810.08,0.00033698,4]
[314899449,1708625521193,-500.0,0.00033698,4]
[314899450,1708625521203,-3953.01,0.00033698,4]
[314899451,1708625521212,-1357.88,0.00033698,4]
[314899452,1708625521221,-500.0,0.00033698,4]
[314899453,1708625521230,-523.91,0.00033698,4]
[314899454,1708625521240,-500.0,0.00033698,4]
[314899455,1708625521250,-500.0,0.00033698,4]
[314899456,1708625521260,-500.0,0.00033698,4]
[314899457,1708625521269,-156.888403,0.00033698,7]
[314899458,1708625521280,-1319.7,0.00033698,4]
[314899459,1708625521290,-611.32619696,0.00033698,4]
[314899460,1708625521299,-1306.91,0.00033698,4]
[314899461,1708625521310,-2921.05,0.00033698,4]
[314899462,1708625521321,-4012.02,0.00033698,4]
[314899463,1708625521331,-3520.12,0.00033698,4]
[314899464,1708625521341,-1203.69,0.00033698,4]
[314899465,1708625521351,-156.888403,0.00033698,7]
[314899466,1708625521361,-7422.46,0.00033698,4]
[314899467,1708625521370,-2325.63,0.00033698,4]
[314899468,1708625521380,-595.22,0.00033698,4]
[314899469,1708625521389,-500.0,0.00033698,4]
[314899470,1708625521399,-500.0,0.00033698,4]
[314899471,1708625521409,-578.71,0.00033698,4]
[314899472,1708625521419,-896.84,0.00033698,4]
[314899473,1708625521429,-500.0,0.00033698,4]
[314899474,1708625521439,-802.17,0.00033698,4]
[314899475,1708625521451,-500.0,0.00033698,4]
[314899476,1708625521460,-579.72,0.00033698,4]
[314899477,1708625521470,-2641.23,0.00033698,4]
[314899478,1708625521481,-999.86,0.00033698,4]
[314899479,1708625521490,-3363.68,0.00033698,4]
[314899480,1708625521500,-2799.21,0.00033698,4]
[314899481,1708625521510,-500.0,0.00033698,4]
[314899482,1708625521519,-500.0,0.00033698,4]
[314899483,1708625521530,-500.0,0.00033698,4]
[314899484,1708625521539,-522.87,0.00033698,4]
[314899485,1708625521549,-879.41,0.00033698,4]
[314899486,1708625521559,-2871.255775,0.00033698,7]
[314899487,1708625521573,-922.6,0.00033698,4]
[314899488,1708625521584,-7827.29,0.00033698,4]
[314899489,1708625521594,-1225.83,0.00033698,4]
[314899490,1708625521604,-708.41,0.00033698,4]
[314899491,1708625521614,-2871.255775,0.00033698,7]
[314899492,1708625521623,-4523.83,0.00033698,4]
[314899493,1708625521632,-1375.3,0.00033698,4]
[314899494,1708625521642,-4862.62,0.00033698,4]
[314899495,1708625521651,-346.61,0.00033698,4]
[314899496,1708625521661,-735.21,0.00033698,4]
[314899497,1708625521670,-757.98,0.00033698,4]
[314899498,1708625521679,-500.0,0.00033698,4]
[314899499,1708625521688,-3270.53,0.00033698,4]
[314899500,1708625521698,-2130.22,0.00033698,4]
[314899501,1708625521707,-876.68,0.00033698,4]
[314899502,1708625521716,-3006.31,0.00033698,4]
[314899503,1708625521726,-151.0,0.00033698,7]
[314899504,1708625521736,-358.319661,0.00033698,7]
[314899505,1708625521746,-5087.25,0.00033698,4]
[314899506,1708625521756,-1542.31,0.00033698,4]
[314899507,1708625521765,-869.35,0.00033698,4]
[314899508,1708625521775,-500.0,0.00033698,4]
[314899509,1708625521784,-500.0,0.00033698,4]
[314899510,1708625521794,-1701.19,0.00033698,4]
[314899511,1708625521803,-358.319661,0.00033698,7]
[314899512,1708625521812,-515.76233783,0.00033698,4]
[314899513,1708625521822,-1144.38,0.00033698,4]
[314899514,1708625521831,-10191.48,0.00033698,4]
[314899515,1708625521840,-14297.7,0.00033698,4]
[314899516,1708625521850,-870.84,0.00033698,4]
[314899517,1708625521859,-1739.37,0.00033698,4]
[314899518,1708625521868,-151.0,0.00033698,7]
[314899519,1708625521882,-500.0,0.00033698,4]
[314899520,1708625521892,-1219.49,0.00033698,4]
[314899521,1708625521901,-266.314121,0.00033698,7]
[314899522,1708625521910,-500.0,0.00033698,4]
[314899523,1708625521920,-500.0,0.00033698,4]
[314899524,1708625521930,-5320.7,0.00033698,4]
[314899525,1708625521940,-662.36,0.00033698,4]
[314899526,1708625521949,-1389.1,0.00033698,4]
[314899527,1708625521959,-500.0,0.00033698,4]
[314899528,1708625521969,-1178.0,0.00033698,4]
[314899529,1708625521979,-4535.27,0.00033698,4]
[314899530,1708625521988,-1510.56,0.00033698,4]
[314899531,1708625521998,-500.0,0.00033698,4]
[314899532,1708625522008,-151.0,0.00033698,7]
[314899533,1708625522017,-574.08,0.00033698,4]
[314899534,1708625522027,-913.43,0.00033698,4]
[314899535,1708625522036,-239.71274449,0.00033698,4]
[314899536,1708625522046,-957.57,0.00033698,4]
[314899537,1708625522055,-283.71691,0.00033698,7]
[314899538,1708625522064,-1132.71,0.00033698,4]
[314899539,1708625522074,-1614.812565,0.00033698,7]
[314899540,1708625522084,-340.68983116,0.00033698,2]
[314899541,1708625522093,-1840.14,0.00033698,4]
[314899542,1708625522103,-182.999342,0.00033698,7]
[314899543,1708625522113,-182.999342,0.00033698,7]
[314899544,1708625522123,-1614.812565,0.00033698,7]
[314899545,1708625522133,-453.21948346,0.00033698,4]
[314899546,1708625522143,-500.0,0.00033698,4]
[314899547,1708625522153,-500.0,0.00033698,4]
[314899548,1708625522163,-1105.16,0.00033698,4]
[314899549,1708625522173,-8688.16,0.00033698,4]
[314899550,1708625522183,-856.33,0.00033698,4]
[314899551,1708625522192,-1035.38,0.00033698,4]
[314899552,1708625522201,-500.0,0.00033698,4]
[314899553,1708625522212,-597.54,0.00033698,4]
[314899554,1708625522221,-500.0,0.00033698,4]
[314899555,1708625522231,-500.0,0.00033698,4]
[314899556,1708625522240,-1031.07,0.00033698,4]
[314899557,1708625522250,-151.0,0.00033698,7]
[314899558,1708625522260,-607.73,0.00033698,4]
[314899559,1708625522270,-4152.62,0.00033698,4]
[314899560,1708625522279,-4573.59,0.00033698,4]
[314899561,1708625522289,-5220.29,0.00033698,4]
[314899562,1708625522298,-1750.52,0.00033698,4]
[314899563,1708625522308,-543.8,0.00033698,4]
[314899564,1708625522318,-740.42,0.00033698,4]
[314899565,1708625522328,-579.71,0.00033698,4]
[314899566,1708625522337,-27929.76,0.00033698,4]
[314899567,1708625522347,-500.0,0.00033698,4]
[314899568,1708625522356,-2617.91,0.00033698,4]
[314899569,1708625522365,-163.954301,0.00033698,7]
[314899570,1708625522375,-769.4,0.00033698,4]
[314899571,1708625522384,-500.0,0.00033698,4]
[314899572,1708625522394,-163.954301,0.00033698,7]
[314899573,1708625522404,-500.0,0.00033698,4]
[314899574,1708625522414,-3104.43,0.00033698,4]
[314899575,1708625522423,-2557.13,0.00033698,4]
[314899576,1708625522433,-151.0,0.00033698,2]
[314899577,1708625522443,-763.62,0.00033698,4]
[314899578,1708625522453,-31733.49,0.00033698,4]
[314899579,1708625522463,-635.4,0.00033698,4]
[314899580,1708625522474,-1402.56,0.00033698,4]
[314899581,1708625522484,-500.0,0.00033698,4]
[314899582,1708625522494,-10076.31,0.00033698,4]
[314899583,1708625522504,-719.16,0.00033698,4]
[314899584,1708625522514,-500.0,0.00033698,4]
[314899585,1708625522524,-549.71,0.00033698,4]
[314899586,1708625522534,-815.24,0.00033698,4]
[314899587,1708625522544,-540.22,0.00033698,4]
[314899588,1708625522554,-10365.29,0.00033698,4]
[314899589,1708625522563,-1908.5,0.00033698,4]
[314899590,1708625522573,-500.0,0.00033698,4]
[314899591,1708625522583,-1930.81,0.00033698,4]
[314899592,1708625522593,-4645.8,0.00033698,4]
[314899593,1708625522603,-1831.86,0.00033698,4]
[314899594,1708625522613,-500.0,0.00033698,4]
[314899595,1708625522622,-1019.93,0.00033698,4]
[314899596,1708625522635,-500.0,0.00033698,4]
[314899597,1708625522644,-831.39,0.00033698,4]
[314899598,1708625522654,-1113.04,0.00033698,4]
[314899599,1708625522665,-2272.34,0.00033698,4]
[314899600,1708625522676,-19048.88,0.00033698,4]
[314899601,1708625522686,-703.63,0.00033698,4]
[314899602,1708625522695,-899.16,0.00033698,4]
[314899603,1708625522707,-4986.223576,0.00033698,7]
[314899604,1708625522717,-612.06,0.00033698,4]
[314899605,1708625522727,-1790.32,0.00033698,4]
[314899606,1708625522736,-3342.93,0.00033698,4]
[314899607,1708625522746,-500.0,0.00033698,4]
[314899608,1708625522756,-6652.12,0.00033698,4]
[314899609,1708625522766,-4986.223576,0.00033698,7]
[314899610,1708625522776,-1083.4,0.00033698,4]
[314899611,1708625522786,-316.339277,0.00033698,7]
[314899612,1708625522796,-3448.92,0.00033698,4]
[314899613,1708625522806,-500.0,0.00033698,4]
[314899614,1708625522816,-500.0,0.00033698,4]
[314899615,1708625522827,-2397.11,0.00033698,4]
[314899616,1708625522837,-566.02,0.00033698,4]
[314899617,1708625522848,-316.339277,0.00033698,7]
[314899618,1708625522858,-588.46,0.00033698,4]
[314899619,1708625522868,-668.81,0.00033698,4]
[314899620,1708625522883,-504.65,0.00033698,4]
[314899621,1708625522903,-1569.54,0.00033698,4]
[314899622,1708625522919,-890.14,0.00033698,4]
[314899623,1708625522929,-365.79658225,0.00033698,4]
[314899624,1708625522939,-2839.46,0.00033698,4]
[314899625,1708625522950,-151.0,0.00033698,7]
[314899626,1708625522960,-500.0,0.00033698,4]
[314899627,1708625522970,-500.0,0.00033698,4]
[314899628,1708625522980,-1599.27,0.00033698,4]
[314899629,1708625522990,-12262.15,0.00033698,4]
[314899630,1708625523000,-500.0,0.00033698,4]
[314899631,1708625523010,-603.26,0.00033698,4]
[314899632,1708625523020,-684.48,0.00033698,4]
[314899633,1708625523030,-4428.36,0.00033698,4]
[314899634,1708625523040,-500.0,0.00033698,4]
[314899635,1708625523050,-2710.14,0.00033698,4]
[314899636,1708625523060,-11511.86,0.00033698,4]
[314899637,1708625523070,-13857.62,0.00033698,4]
[314899638,1708625523079,-1092.92,0.00033698,4]
[314899639,1708625523090,-500.0,0.00033698,4]
[314899640,1708625523100,-1594.69,0.00033698,4]
[314899641,1708625523110,-500.0,0.00033698,4]
[314899642,1708625523120,-519.59312322,0.00033698,4]
[314899643,1708625523130,-935.58,0.00033698,4]
[314899644,1708625523140,-543.61,0.00033698,4]
[314899645,1708625523151,-787.78,0.00033698,4]
[314899646,1708625523161,-500.0,0.00033698,4]
[314899647,1708625523171,-12927.16,0.00033698,4]
[314899648,1708625523181,-500.0,0.00033698,4]
[314899649,1708625523191,-952.32,0.00033698,4]
[314899650,1708625523201,-500.0,0.00033698,4]
[314899651,1708625523212,-1397.23,0.00033698,4]
[314899652,1708625523221,-15657.06,0.00033698,4]
[314899653,1708625523231,-734.09,0.00033698,4]
[314899654,1708625523241,-500.0,0.00033698,4]
[314899655,1708625523251,-500.0,0.00033698,4]
[314899656,1708625523261,-638.64,0.00033698,4]
[314899657,1708625523270,-500.0,0.00033698,4]
[314899658,1708625523281,-400.48230267,0.00033698,4]
[314899659,1708625523291,-1622.99,0.00033698,4]
[314899660,1708625523301,-500.0,0.00033698,4]
[314899661,1708625523311,-2266.68,0.00033698,4]
[314899662,1708625523321,-2464.49,0.00033698,4]
[314899663,1708625523331,-1572.14,0.00033698,4]
[314899664,1708625523341,-500.0,0.00033698,4]
[314899665,1708625523351,-1658.88,0.00033698,4]
[314899666,1708625523361,-802.87,0.00033698,4]
[314899667,1708625523371,-1524.56,0.00033698,4]
[314899668,1708625523381,-631.35,0.00033698,4]
[314899669,1708625523391,-500.0,0.00033698,4]
[314899670,1708625523403,-500.0,0.00033698,4]
[314899671,1708625523415,-500.0,0.00033698,4]
[314899672,1708625523425,-500.0,0.00033698,4]
[314899673,1708625523435,-795.52,0.00033698,4]
[314899674,1708625523446,-258.26900291,0.00033698,7]
[314899675,1708625523457,-6459.32,0.00033698,4]
[314899676,1708625523467,-3708.97,0.00033698,4]
[314899677,1708625523477,-1063.1,0.00033698,4]
[314899678,1708625523487,-8548.5,0.00033698,4]
[314899679,1708625523496,-833.35,0.00033698,4]
[314899680,1708625523506,-619.16,0.00033698,4]
[314899681,1708625523516,-8589.16,0.00033698,4]
[314899682,1708625523526,-725.96,0.00033698,4]
[314899683,1708625523536,-559.93,0.00033698,4]
[314899684,1708625523546,-1242.959557,0.00033698,7]
[314899685,1708625523556,-500.0,0.00033698,4]
[314899686,1708625523566,-500.0,0.00033698,4]
[314899687,1708625523576,-885.04,0.00033698,4]
[314899688,1708625523585,-695.88,0.00033698,4]
[314899689,1708625523595,-1242.959551,0.00033698,7]
[314899690,1708625523606,-151.0,0.00033698,7]
[314899691,1708625523618,-500.0,0.00033698,4]
[314899692,1708625523628,-1152.72,0.00033698,4]
[314899693,1708625523638,-1529.13,0.00033698,4]
[314899694,1708625523647,-3657.93,0.00033698,4]
[314899695,1708625523657,-1521.37,0.00033698,4]
[314899696,1708625523667,-500.0,0.00033698,4]
[314899697,1708625523678,-1371.815247,0.00033698,7]
[314899698,1708625523687,-649.89,0.00033698,4]
[314899699,1708625523698,-1012.78,0.00033698,4]
[314899700,1708625523709,-500.0,0.00033698,4]
[314899701,1708625523719,-1371.815254,0.00033698,7]
[314899702,1708625523730,-500.0,0.00033698,4]
[314899703,1708625523740,-982.4,0.00033698,4]
[314899704,1708625523750,-1281.51,0.00033698,4]
[314899705,1708625523761,-548.38,0.00033698,4]
[314899706,1708625523771,-757.3,0.00033698,4]
[314899707,1708625523781,-488.92616,0.00033698,4]
[314899708,1708625523791,-753.97,0.00033698,4]
[314899709,1708625523801,-2156.76,0.00033698,4]
[314899710,1708625523812,-2549.51,0.00033698,4]
[314899711,1708625523822,-296.963224,0.00033698,7]
[314899712,1708625523832,-2213.41,0.00033698,4]
[314899713,1708625523842,-500.0,0.00033698,4]
[314899714,1708625523852,-4381.7,0.00033698,4]
[314899715,1708625523862,-5006.44,0.00033698,4]
[314899716,1708625523873,-500.0,0.00033698,4]
[314899717,1708625523887,-296.963227,0.00033698,7]
[314899718,1708625523898,-500.0,0.00033698,4]
[314899719,1708625523909,-1083.67,0.00033698,4]
[314899720,1708625523919,-411.757149,0.00033698,7]
[314899721,1708625523929,-2631.91,0.00033698,4]
[314899722,1708625523939,-500.0,0.00033698,4]
[314899723,1708625523949,-647.141138,0.00033698,7]
[314899724,1708625523960,-411.757154,0.00033698,7]
[314899725,1708625523970,-928.82,0.00033698,4]
[314899726,1708625523980,-1050.11,0.00033698,4]
[314899727,1708625523989,-988.3,0.00033698,4]
[314899728,1708625523998,-553.85,0.00033698,4]
[314899729,1708625524008,-1569.8,0.00033698,4]
[314899730,1708625524018,-1347.04,0.00033698,4]
[314899731,1708625524028,-647.14113,0.00033698,7]
[314899732,1708625524038,-1930.76,0.00033698,4]
[314899733,1708625524048,-500.0,0.00033698,4]
[314899734,1708625524059,-266.013848,0.00033698,7]
[314899735,1708625524069,-1578.95,0.00033698,4]
[314899736,1708625524078,-654.06,0.00033698,4]
[314899737,1708625524088,-266.013851,0.00033698,7]
[314899738,1708625524099,-1152.52,0.00033698,4]
[314899739,1708625524109,-1562.64,0.00033698,4]
[314899740,1708625524119,-13046.67,0.00033698,4]
[314899741,1708625524129,-500.0,0.00033698,4]
[314899742,1708625524139,-554.48,0.00033698,4]
[314899743,1708625524148,-5718.46,0.00033698,4]
[314899744,1708625524157,-585.24,0.00033698,4]
[314899745,1708625524167,-4320.81,0.00033698,4]
[314899746,1708625524178,-1143.61,0.00033698,4]
[314899747,1708625524188,-500.0,0.00033698,4]
[314899748,1708625524198,-649.169362,0.00033698,7]
[314899749,1708625524209,-3703.9,0.00033698,4]
[314899750,1708625524218,-603.7417742,0.00033698,4]
[314899751,1708625524228,-500.0,0.00033698,4]
[314899752,1708625524238,-649.169361,0.00033698,7]
[314899753,1708625524248,-845.41,0.00033698,4]
[314899754,1708625524257,-1239.69,0.00033698,4]
[314899755,1708625524267,-500.0,0.00033698,4]
[314899756,1708625524277,-842.27,0.00033698,4]
[314899757,1708625524287,-2562.83,0.00033698,4]
[314899758,1708625524298,-1082.3,0.00033698,4]
[314899759,1708625524308,-968.09,0.00033698,4]
[314899760,1708625524318,-192.527771,0.00033698,7]
[314899761,1708625524329,-500.0,0.00033698,2]
[314899762,1708625524339,-2763.17,0.00033698,4]
[314899763,1708625524349,-192.527768,0.00033698,7]
[314899764,1708625524359,-1672.02,0.00033698,4]
[314899765,1708625524369,-500.0,0.00033698,4]
[314899766,1708625524379,-500.0,0.00033698,4]
[314899767,1708625524389,-850.13,0.00033698,4]
[314899768,1708625524400,-668.88,0.00033698,4]
[314899769,1708625524411,-1634.02,0.00033698,4]
[314899770,1708625524421,-500.0,0.00033698,4]
[314899771,1708625524431,-3311.96,0.00033698,4]
[314899772,1708625524441,-1279.14,0.00033698,4]
[314899773,1708625524452,-930.33,0.00033698,4]
[314899774,1708625524462,-2625.59,0.00033698,4]
[314899775,1708625524472,-619.14,0.00033698,4]
[314899776,1708625524482,-1635.09,0.00033698,4]
[314899777,1708625524492,-2609.74,0.00033698,4]
[314899778,1708625524502,-3610.42,0.00033698,4]
[314899779,1708625524512,-967.22,0.00033698,4]
[314899780,1708625524521,-310.972495,0.00033698,7]
[314899781,1708625524532,-923.8,0.00033698,4]
[314899782,1708625524542,-1343.66,0.00033698,4]
[314899783,1708625524552,-2303.413771,0.00033698,7]
[314899784,1708625524562,-373.03768016,0.00033698,4]
[314899785,1708625524572,-1380.71,0.00033698,4]
[314899786,1708625524582,-310.972504,0.00033698,7]
[314899787,1708625524592,-1594.46,0.00033698,4]
[314899788,1708625524602,-8671.59,0.00033698,4]
[314899789,1708625524612,-1079.87,0.00033698,4]
[314899790,1708625524621,-412.88,0.00033699,2]
[314899791,1708625524632,-150.0,0.00033704,2]
[314899792,1708625524641,-150.0,0.00033731,2]
[314899793,1708625524651,-151.0,0.00033738,30]
[314899794,1708625524661,-1500.0,0.00033743,2]
[314899795,1708625524671,-1500.0,0.00033749,2]
[314899796,1708625524682,-150.0,0.00033757,2]
[314899797,1708625524692,-150.0,0.00033769,2]
[314899798,1708625524704,-161.0,0.00033773,2]
[314899799,1708625524714,-150.0,0.00033779,2]
[314899800,1708625524724,-150.0,0.0003378,2]
[314899801,1708625524734,-150.0,0.00033785,2]
[314899802,1708625524745,-150.0,0.00033785,2]
[314899803,1708625524756,-200.0,0.000338,6]
[314899804,1708625524765,-150.0,0.00033802,2]
[314899805,1708625524775,-150.0,0.00033804,2]
[314899806,1708625524785,-150.0,0.0003381,2]
[314899807,1708625524795,-150.0,0.00033813,2]
[314899808,1708625524805,-150.0,0.00033815,2]
[314899809,1708625524815,-150.0,0.00033825,2]
[314899810,1708625525056,-150.0,0.00033826,2]
[314899811,1708625525081,-150.0,0.00033828,2]
[314899812,1708625525092,-500.0,0.00033835,4]
[314899813,1708625525101,-500.0,0.00033835,4]
[314899814,1708625525111,-500.0,0.00033835,4]
[314899815,1708625525121,-500.0,0.00033835,4]
[314899816,1708625525131,-500.0,0.00033835,4]
[314899817,1708625525141,-500.0,0.00033835,4]
[314899818,1708625525150,-500.0,0.00033835,4]
[314899819,1708625525160,-500.0,0.00033835,4]
[314899820,1708625525171,-579.41302209,0.00033835,4]
[314899821,1708625525181,-500.0,0.00033835,4]
[314899822,1708625525191,-500.0,0.00033835,4]
[314899823,1708625525203,-500.0,0.00033835,4]
[314899824,1708625525213,-500.0,0.00033835,4]
[314899825,1708625525223,-500.0,0.00033835,2]
[314899826,1708625525232,-514.99,0.00033835,4]
[314899827,1708625525243,-500.0,0.00033835,4]
[314899828,1708625525253,-500.0,0.00033835,4]
[314899829,1708625525263,-555.79,0.00033835,4]
[314899830,1708625525273,-500.0,0.00033835,4]
[314899831,1708625525283,-500.0,0.00033835,4]
[314899832,1708625525293,-641.75,0.00033835,4]
[314899833,1708625525303,-500.0,0.00033835,4]
[314899834,1708625525313,-750.74,0.00033835,4]
[314899835,1708625525322,-500.0,0.00033835,4]
[314899836,1708625525332,-500.0,0.00033835,4]
[314899837,1708625525341,-328.81468274,0.00033835,4]
[314899838,1708625525351,-500.0,0.00033835,4]
[314899839,1708625525361,-500.0,0.00033835,4]
[314899840,1708625525370,-542.31,0.00033835,4]
[314899841,1708625525380,-500.0,0.00033835,4]
[314899842,1708625525390,-621.21,0.00033835,4]
[314899843,1708625525402,-500.0,0.00033835,4]
[314899844,1708625525412,-500.0,0.00033835,4]
[314899845,1708625525422,-250.0,0.00033835,4]
[314899846,1708625525432,-551.07,0.00033835,4]
[314899847,1708625525442,-383.54926271,0.00033835,4]
[314899848,1708625525453,-744.09,0.00033835,4]
[314899849,1708625525463,-500.0,0.00033835,4]
[314899850,1708625525473,-500.0,0.00033835,4]
[314899851,1708625525483,-500.0,0.00033835,4]
[314899852,1708625525492,-500.0,0.00033835,4]
[314899853,1708625525502,-573.53,0.00033835,4]
[314899854,1708625525512,-533.26216397,0.00033835,4]
[314899855,1708625525522,-500.0,0.00033835,4]
[314899856,1708625525532,-500.0,0.00033835,4]
[314899857,1708625525541,-500.0,0.00033835,4]
[314899858,1708625525550,-500.0,0.00033835,4]
[314899859,1708625525560,-500.0,0.00033835,4]
[314899860,1708625525570,-500.0,0.00033835,4]
[314899861,1708625525579,-500.0,0.00033835,4]
[314899862,1708625525589,-500.0,0.00033835,4]
[314899863,1708625525599,-500.0,0.00033835,4]
[314899864,1708625525609,-500.0,0.00033835,4]
[314899865,1708625525619,-500.0,0.00033835,4]
[314899866,1708625525628,-524.07,0.00033835,4]
[314899867,1708625525638,-500.0,0.00033835,4]
[314899868,1708625525648,-951.85,0.00033835,4]
[314899869,1708625525658,-500.0,0.00033835,4]
[314899870,1708625525668,-926.28,0.00033835,4]
[314899871,1708625525678,-744.11,0.00033835,4]
[314899872,1708625525687,-529.22,0.00033835,4]
[314899873,1708625525697,-500.0,0.00033835,4]
[314899874,1708625525708,-500.0,0.00033835,4]
[314899875,1708625525717,-500.0,0.00033835,4]
[314899876,1708625525727,-500.0,0.00033835,4]
[314899877,1708625525736,-1143.73,0.00033835,4]
[314899878,1708625525746,-500.0,0.00033835,4]
[314899879,1708625525756,-500.0,0.00033835,4]
[314899880,1708625525766,-500.0,0.00033835,4]
[314899881,1708625525779,-779.36,0.00033835,4]
[314899882,1708625525789,-500.0,0.00033835,4]
[314899883,1708625525798,-635.41,0.00033835,4]
[314899884,1708625525809,-555.19,0.00033835,4]
[314899885,1708625525818,-500.0,0.00033835,4]
[314899886,1708625525829,-500.0,0.00033835,4]
[314899887,1708625525838,-500.0,0.00033835,4]
[314899888,1708625525849,-500.0,0.00033835,4]
[314899889,1708625525858,-822.26,0.00033835,4]
[314899890,1708625525868,-769.66,0.00033835,4]
[314899891,1708625525878,-500.0,0.00033835,4]
[314899892,1708625525891,-249.84463843,0.00033835,4]
[314899893,1708625525901,-500.0,0.00033835,4]
[314899894,1708625525911,-500.0,0.00033835,4]
[314899895,1708625525922,-889.62,0.00033835,4]
[314899896,1708625525932,-634.08,0.00033835,4]
[314899897,1708625525941,-500.0,0.00033835,4]
[314899898,1708625525952,-567.01,0.00033835,4]
[314899899,1708625525962,-721.11,0.00033835,4]
[314899900,1708625525972,-653.98,0.00033835,4]
[314899901,1708625525982,-659.59,0.00033835,4]
[314899902,1708625525992,-500.0,0.00033835,4]
[314899903,1708625526002,-951.61,0.00033835,4]
[314899904,1708625526012,-627.93,0.00033835,4]
[314899905,1708625526022,-1016.3,0.00033835,4]
[314899906,1708625526032,-677.11,0.00033835,4]